[Event "Titled Tuesday Blitz January 31 Late 2023"]
[White "Salimova, Nurgyul"]
[Black "Vlassov, Nikolai"]
[WhiteFideId "2915138"]
[BlackFideId "4103360"]
[WhiteElo "2391"]
[BlackElo "2283"]
[Result "1-0"]
[Round "11"]
[TimeControl "180+2"]
[Date "2023.02.01"]
[WhiteClock "0:01:55"]
[BlackClock "0:01:24"]

1. e4 {[%clk 0:03:00]}  Nc6 {[%clk 0:02:58]} 2. d4 {[%clk 0:02:59]}  d5 {[%clk 0:02:56]} 3. e5 {[%clk 0:02:57]}  h5 {[%clk 0:02:55]} 4. Be3 {[%clk 0:02:48]}  Bg4 {[%clk 0:02:55]} 5. f3 {[%clk 0:02:46]}  Bf5 {[%clk 0:02:54]} 6. f4 {[%clk 0:02:44]}  f6 {[%clk 0:02:52]} 7. Nf3 {[%clk 0:02:43]}  Qd7 {[%clk 0:02:50]} 8. c3 {[%clk 0:02:36]}  O-O-O {[%clk 0:02:48]} 9. a4 {[%clk 0:02:34]}  g5 {[%clk 0:02:44]} 10. fxg5 {[%clk 0:02:16]}  fxe5 {[%clk 0:02:43]} 11. Bb5 {[%clk 0:02:16]}  Bg7 {[%clk 0:02:17]} 12. dxe5 {[%clk 0:02:10]}  a6 {[%clk 0:02:16]} 13. Bxc6 {[%clk 0:02:09]}  Qxc6 {[%clk 0:02:15]} 14. Qd4 {[%clk 0:02:08]}  e6 {[%clk 0:02:10]} 15. Nbd2 {[%clk 0:02:06]}  Ne7 {[%clk 0:02:08]} 16. O-O {[%clk 0:02:02]}  Ng6 {[%clk 0:02:02]} 17. b4 {[%clk 0:01:59]}  Be4 {[%clk 0:01:24]} 18. b5 {[%clk 0:01:57]}  axb5 {[%clk 0:01:24]} 19. axb5 {[%clk 0:01:57]}  Qxb5 {[%clk 0:01:24]} 20. Nxe4 {[%clk 0:01:55]}  dxe4 {[%clk 0:01:24]} 21. Ra8# {[%clk 0:01:55]} 1-0


[Site "https://www.chess.com"]

[Event "Titled Tuesday Blitz January 31 Late 2023"]
[White "Mikaelyan, Arman"]
[Black "Hernandez Sanchez, Elvis De La Caridad"]
[WhiteFideId "13304852"]
[BlackFideId "6400353"]
[WhiteElo "2523"]
[BlackElo "2243"]
[Result "1-0"]
[Round "11"]
[TimeControl "180+2"]
[Date "2023.02.01"]
[WhiteClock "0:01:16"]
[BlackClock "0:00:10"]

1. a3 {[%clk 0:03:00]}  g6 {[%clk 0:02:56]} 2. e3 {[%clk 0:02:56]}  Bg7 {[%clk 0:02:56]} 3. c4 {[%clk 0:02:57]}  c5 {[%clk 0:02:53]} 4. Nc3 {[%clk 0:02:57]}  Nc6 {[%clk 0:02:52]} 5. Rb1 {[%clk 0:02:58]}  a5 {[%clk 0:02:40]} 6. Nf3 {[%clk 0:02:57]}  e5 {[%clk 0:02:39]} 7. g3 {[%clk 0:02:46]}  Nge7 {[%clk 0:02:30]} 8. Bg2 {[%clk 0:02:45]}  O-O {[%clk 0:02:30]} 9. O-O {[%clk 0:02:46]}  d6 {[%clk 0:02:25]} 10. d3 {[%clk 0:02:44]}  h6 {[%clk 0:02:23]} 11. Bd2 {[%clk 0:02:43]}  Be6 {[%clk 0:02:22]} 12. Ne1 {[%clk 0:02:39]}  d5 {[%clk 0:02:19]} 13. cxd5 {[%clk 0:02:39]}  Nxd5 {[%clk 0:02:20]} 14. Nc2 {[%clk 0:02:37]}  Nde7 {[%clk 0:02:07]} 15. Qe2 {[%clk 0:02:22]}  Qd7 {[%clk 0:02:06]} 16. Na4 {[%clk 0:02:16]}  Qd6 {[%clk 0:01:46]} 17. Nb6 {[%clk 0:02:13]}  Ra6 {[%clk 0:01:38]} 18. Nc4 {[%clk 0:02:11]}  Qd7 {[%clk 0:01:34]} 19. a4 {[%clk 0:02:05]}  Rd8 {[%clk 0:01:30]} 20. Bc3 {[%clk 0:02:02]}  Qxd3 {[%clk 0:01:19]} 21. Qxd3 {[%clk 0:02:02]}  Rxd3 {[%clk 0:01:19]} 22. N2a3 {[%clk 0:02:01]}  Ra8 {[%clk 0:01:12]} 23. Be4 {[%clk 0:02:00]}  Rdd8 {[%clk 0:01:09]} 24. b3 {[%clk 0:01:54]}  Bd5 {[%clk 0:01:05]} 25. f3 {[%clk 0:01:44]}  Nb4 {[%clk 0:00:52]} 26. Bxe5 {[%clk 0:01:30]}  Bxe4 {[%clk 0:00:43]} 27. fxe4 {[%clk 0:01:29]}  Nec6 {[%clk 0:00:37]} 28. Bxg7 {[%clk 0:01:28]}  Kxg7 {[%clk 0:00:38]} 29. Nb5 {[%clk 0:01:27]}  Rd3 {[%clk 0:00:33]} 30. Nbd6 {[%clk 0:01:23]}  Rf8 {[%clk 0:00:24]} 31. Nxb7 {[%clk 0:01:23]}  Nc2 {[%clk 0:00:20]} 32. Nxc5 {[%clk 0:01:24]}  Rc3 {[%clk 0:00:17]} 33. Rbc1 {[%clk 0:01:24]}  N6b4 {[%clk 0:00:15]} 34. Rf2 {[%clk 0:01:16]}  f5 {[%clk 0:00:10]} 35. Ne6+ {[%clk 0:01:16]} 1-0


[Site "https://www.chess.com"]

[Event "Titled Tuesday Blitz January 31 Late 2023"]
[White "Svane, Frederik"]
[Black "Golubev, Mikhail"]
[WhiteFideId "12923044"]
[BlackFideId "14100983"]
[WhiteElo "2600"]
[BlackElo "2461"]
[Result "1-0"]
[Round "11"]
[TimeControl "180+2"]
[Date "2023.02.01"]
[WhiteClock "0:00:28"]
[BlackClock "0:00:01"]

1. c4 {[%clk 0:03:00]}  g6 {[%clk 0:02:59]} 2. Nc3 {[%clk 0:02:59]}  Bg7 {[%clk 0:03:00]} 3. g3 {[%clk 0:02:58]}  e5 {[%clk 0:02:59]} 4. Bg2 {[%clk 0:02:58]}  Nc6 {[%clk 0:03:00]} 5. e3 {[%clk 0:02:58]}  d6 {[%clk 0:02:59]} 6. Nge2 {[%clk 0:02:58]}  Nf6 {[%clk 0:02:58]} 7. O-O {[%clk 0:02:54]}  O-O {[%clk 0:02:58]} 8. d4 {[%clk 0:02:54]}  exd4 {[%clk 0:02:56]} 9. exd4 {[%clk 0:02:53]}  Re8 {[%clk 0:02:55]} 10. h3 {[%clk 0:02:50]}  Bf5 {[%clk 0:02:50]} 11. g4 {[%clk 0:02:47]}  Bd7 {[%clk 0:02:50]} 12. Re1 {[%clk 0:02:46]}  h5 {[%clk 0:02:49]} 13. g5 {[%clk 0:02:45]}  Nh7 {[%clk 0:02:48]} 14. h4 {[%clk 0:02:41]}  Nxd4 {[%clk 0:02:47]} 15. Nxd4 {[%clk 0:02:30]}  Rxe1+ {[%clk 0:02:47]} 16. Qxe1 {[%clk 0:02:31]}  Bxd4 {[%clk 0:02:46]} 17. Bxb7 {[%clk 0:02:30]}  Rb8 {[%clk 0:02:46]} 18. Bd5 {[%clk 0:02:28]}  Nf8 {[%clk 0:02:41]} 19. Be3 {[%clk 0:02:22]}  Bg7 {[%clk 0:02:08]} 20. b3 {[%clk 0:02:16]}  c6 {[%clk 0:02:05]} 21. Bg2 {[%clk 0:02:14]}  Ne6 {[%clk 0:01:59]} 22. Rd1 {[%clk 0:02:11]}  Be5 {[%clk 0:01:45]} 23. Ne4 {[%clk 0:02:09]}  c5 {[%clk 0:00:58]} 24. Nxd6 {[%clk 0:02:03]}  Nd4 {[%clk 0:00:56]} 25. Ne4 {[%clk 0:01:49]}  Bg4 {[%clk 0:00:55]} 26. Rd2 {[%clk 0:01:25]}  Qc8 {[%clk 0:00:38]} 27. Bxd4 {[%clk 0:01:21]}  Bxd4 {[%clk 0:00:36]} 28. Rxd4 {[%clk 0:01:18]}  cxd4 {[%clk 0:00:34]} 29. Nf6+ {[%clk 0:01:18]}  Kf8 {[%clk 0:00:28]} 30. Qe5 {[%clk 0:01:17]}  Qd8 {[%clk 0:00:19]} 31. Bd5 {[%clk 0:01:02]}  d3 {[%clk 0:00:17]} 32. Qf4 {[%clk 0:01:03]}  Kg7 {[%clk 0:00:13]} 33. Qd4 {[%clk 0:00:55]}  Qb6 {[%clk 0:00:12]} 34. Nxh5+ {[%clk 0:00:47]}  Kf8 {[%clk 0:00:12]} 35. Qg7+ {[%clk 0:00:48]}  Ke8 {[%clk 0:00:12]} 36. Nf6+ {[%clk 0:00:41]}  Kd8 {[%clk 0:00:11]} 37. Qf8+ {[%clk 0:00:41]}  Kc7 {[%clk 0:00:10]} 38. Qxf7+ {[%clk 0:00:37]}  Kd6 {[%clk 0:00:09]} 39. Nxg4 {[%clk 0:00:35]}  d2 {[%clk 0:00:08]} 40. Qf4+ {[%clk 0:00:35]}  Kc5 {[%clk 0:00:03]} 41. Qe3+ {[%clk 0:00:35]}  Kb4 {[%clk 0:00:01]} 42. Qxd2+ {[%clk 0:00:36]}  Ka3 {[%clk 0:00:02]} 43. Ne3 {[%clk 0:00:34]}  Re8 {[%clk 0:00:01]} 44. c5 {[%clk 0:00:28]} 1-0


[Site "https://www.chess.com"]

[Event "Titled Tuesday Blitz January 31 Late 2023"]
[White "Harshavardhan G B"]
[Black "Ortega Amarelle, Mariano"]
[WhiteFideId "25059009"]
[BlackFideId "3504301"]
[WhiteElo "2408"]
[BlackElo "2472"]
[Result "1-0"]
[Round "11"]
[TimeControl "180+2"]
[Date "2023.02.01"]
[WhiteClock "0:00:54"]
[BlackClock "0:00:01"]

1. Nf3 {[%clk 0:03:00]}  Nf6 {[%clk 0:02:52]} 2. g3 {[%clk 0:03:00]}  b6 {[%clk 0:02:53]} 3. Bg2 {[%clk 0:03:00]}  Bb7 {[%clk 0:02:53]} 4. O-O {[%clk 0:03:00]}  e6 {[%clk 0:02:54]} 5. d3 {[%clk 0:03:00]}  d5 {[%clk 0:02:53]} 6. Nbd2 {[%clk 0:03:01]}  Bc5 {[%clk 0:02:52]} 7. b3 {[%clk 0:02:59]}  O-O {[%clk 0:02:50]} 8. Bb2 {[%clk 0:02:59]}  a5 {[%clk 0:02:48]} 9. a4 {[%clk 0:02:58]}  d4 {[%clk 0:02:16]} 10. c3 {[%clk 0:02:52]}  dxc3 {[%clk 0:02:13]} 11. Bxc3 {[%clk 0:02:53]}  Nbd7 {[%clk 0:01:57]} 12. Qc2 {[%clk 0:02:43]}  Be7 {[%clk 0:01:54]} 13. d4 {[%clk 0:02:41]}  c5 {[%clk 0:01:51]} 14. Rfd1 {[%clk 0:02:39]}  Rc8 {[%clk 0:01:48]} 15. Qb1 {[%clk 0:02:28]}  Qc7 {[%clk 0:01:38]} 16. e4 {[%clk 0:02:25]}  cxd4 {[%clk 0:01:26]} 17. Bxd4 {[%clk 0:02:26]}  Qc2 {[%clk 0:01:26]} 18. e5 {[%clk 0:02:22]}  Nd5 {[%clk 0:01:21]} 19. Nc4 {[%clk 0:02:17]}  Qxb1 {[%clk 0:01:17]} 20. Raxb1 {[%clk 0:02:18]}  Ba6 {[%clk 0:01:07]} 21. Nfd2 {[%clk 0:02:08]}  Bc5 {[%clk 0:00:55]} 22. Ne4 {[%clk 0:02:06]}  Bxd4 {[%clk 0:00:54]} 23. Rxd4 {[%clk 0:02:07]}  Nc5 {[%clk 0:00:46]} 24. Ned6 {[%clk 0:02:05]}  Nc3 {[%clk 0:00:17]} 25. Re1 {[%clk 0:01:55]}  Rc7 {[%clk 0:00:11]} 26. Nxb6 {[%clk 0:01:50]}  Ne2+ {[%clk 0:00:10]} 27. Rxe2 {[%clk 0:01:49]}  Bxe2 {[%clk 0:00:11]} 28. Rd2 {[%clk 0:01:30]}  Ba6 {[%clk 0:00:11]} 29. Rb2 {[%clk 0:01:23]}  Rb8 {[%clk 0:00:09]} 30. Nbc4 {[%clk 0:01:22]}  Bxc4 {[%clk 0:00:09]} 31. Nxc4 {[%clk 0:01:23]}  Rxb3 {[%clk 0:00:09]} 32. Rd2 {[%clk 0:01:14]}  Rb1+ {[%clk 0:00:09]} 33. Bf1 {[%clk 0:01:14]}  g6 {[%clk 0:00:08]} 34. Nxa5 {[%clk 0:01:11]}  Ne4 {[%clk 0:00:08]} 35. Re2 {[%clk 0:01:06]}  Ng5 {[%clk 0:00:05]} 36. Kg2 {[%clk 0:01:01]}  Rcc1 {[%clk 0:00:03]} 37. h4 {[%clk 0:01:01]}  Nh3 {[%clk 0:00:01]} 38. Kxh3 {[%clk 0:01:00]}  Rxf1 {[%clk 0:00:01]} 39. Nc4 {[%clk 0:00:57]}  Rb4 {[%clk 0:00:01]} 40. Nd6 {[%clk 0:00:55]}  Ra1 {[%clk 0:00:01]} 41. Rc2 {[%clk 0:00:54]} 1-0


[Site "https://www.chess.com"]

[Event "Titled Tuesday Blitz January 31 Late 2023"]
[White "Dourerassou, Jonathan"]
[Black "Vovk, Orest"]
[WhiteFideId "628050"]
[BlackFideId "14113490"]
[WhiteElo "2414"]
[BlackElo "2315"]
[Result "1-0"]
[Round "11"]
[TimeControl "180+2"]
[Date "2023.02.01"]
[WhiteClock "0:00:48"]
[BlackClock "0:00:08"]

1. d4 {[%clk 0:02:56]}  e5 {[%clk 0:02:52]} 2. dxe5 {[%clk 0:02:53]}  Nc6 {[%clk 0:02:52]} 3. Nf3 {[%clk 0:02:54]}  Qe7 {[%clk 0:02:51]} 4. Nc3 {[%clk 0:02:53]}  Nxe5 {[%clk 0:02:50]} 5. e4 {[%clk 0:02:51]}  Nxf3+ {[%clk 0:02:48]} 6. Qxf3 {[%clk 0:02:52]}  Qf6 {[%clk 0:02:46]} 7. Bf4 {[%clk 0:02:50]}  d6 {[%clk 0:02:26]} 8. O-O-O {[%clk 0:02:44]}  Be6 {[%clk 0:02:02]} 9. Bb5+ {[%clk 0:02:09]}  c6 {[%clk 0:01:50]} 10. e5 {[%clk 0:02:09]}  dxe5 {[%clk 0:01:32]} 11. Bxc6+ {[%clk 0:02:08]}  Ke7 {[%clk 0:01:32]} 12. Bxb7 {[%clk 0:01:40]}  Rb8 {[%clk 0:01:20]} 13. Be3 {[%clk 0:01:31]}  Qxf3 {[%clk 0:01:20]} 14. Bxf3 {[%clk 0:01:31]}  a6 {[%clk 0:01:08]} 15. Nd5+ {[%clk 0:01:11]}  Bxd5 {[%clk 0:01:04]} 16. Rxd5 {[%clk 0:01:12]}  Rb5 {[%clk 0:00:51]} 17. Rxb5 {[%clk 0:01:06]}  axb5 {[%clk 0:00:52]} 18. Bc5+ {[%clk 0:01:06]}  Kf6 {[%clk 0:00:44]} 19. Bxf8 {[%clk 0:01:05]}  Nh6 {[%clk 0:00:45]} 20. Bc5 {[%clk 0:01:03]}  Rc8 {[%clk 0:00:44]} 21. Be3 {[%clk 0:00:59]}  Nf5 {[%clk 0:00:44]} 22. Bg4 {[%clk 0:00:58]}  g6 {[%clk 0:00:43]} 23. h4 {[%clk 0:00:56]}  Ra8 {[%clk 0:00:42]} 24. Bg5+ {[%clk 0:00:55]}  Kg7 {[%clk 0:00:39]} 25. Bxf5 {[%clk 0:00:54]}  gxf5 {[%clk 0:00:39]} 26. a3 {[%clk 0:00:53]}  f4 {[%clk 0:00:39]} 27. Be7 {[%clk 0:00:53]}  f5 {[%clk 0:00:36]} 28. h5 {[%clk 0:00:52]}  Kf7 {[%clk 0:00:35]} 29. Bb4 {[%clk 0:00:52]}  Rg8 {[%clk 0:00:34]} 30. Rh2 {[%clk 0:00:51]}  Ke6 {[%clk 0:00:32]} 31. Kd2 {[%clk 0:00:52]}  e4 {[%clk 0:00:32]} 32. Ke2 {[%clk 0:00:52]}  Rc8 {[%clk 0:00:24]} 33. Bc3 {[%clk 0:00:51]}  Rg8 {[%clk 0:00:23]} 34. Kf1 {[%clk 0:00:51]}  Kd5 {[%clk 0:00:15]} 35. Rh4 {[%clk 0:00:50]}  Rg4 {[%clk 0:00:09]} 36. Rxg4 {[%clk 0:00:50]}  fxg4 {[%clk 0:00:10]} 37. g3 {[%clk 0:00:50]}  f3 {[%clk 0:00:08]} 38. Bd2 {[%clk 0:00:50]}  Kc4 {[%clk 0:00:08]} 39. Ke1 {[%clk 0:00:49]}  Kd5 {[%clk 0:00:08]} 40. Be3 {[%clk 0:00:48]}  Kc4 {[%clk 0:00:08]} 41. Kd2 {[%clk 0:00:48]} 1-0


[Site "https://www.chess.com"]

[Event "Titled Tuesday Blitz January 31 Late 2023"]
[White "Kanakaris, Georgios"]
[Black "Deviprasath, Sharvesh"]
[WhiteFideId "4209460"]
[BlackFideId "30938228"]
[WhiteElo "2391"]
[BlackElo "2296"]
[Result "1-0"]
[Round "11"]
[TimeControl "180+2"]
[Date "2023.02.01"]
[WhiteClock "0:01:41"]
[BlackClock "0:01:19"]

1. Nf3 {[%clk 0:03:00]}  g6 {[%clk 0:02:57]} 2. d4 {[%clk 0:03:00]}  Bg7 {[%clk 0:02:58]} 3. g3 {[%clk 0:03:01]}  Nf6 {[%clk 0:02:52]} 4. Bg2 {[%clk 0:03:00]}  O-O {[%clk 0:02:53]} 5. O-O {[%clk 0:02:59]}  d6 {[%clk 0:02:53]} 6. b3 {[%clk 0:02:59]}  Nbd7 {[%clk 0:02:54]} 7. Bb2 {[%clk 0:02:59]}  c6 {[%clk 0:02:54]} 8. c4 {[%clk 0:03:00]}  Re8 {[%clk 0:02:51]} 9. Nc3 {[%clk 0:02:59]}  e5 {[%clk 0:02:48]} 10. dxe5 {[%clk 0:02:55]}  dxe5 {[%clk 0:02:48]} 11. Ng5 {[%clk 0:02:54]}  a5 {[%clk 0:02:45]} 12. Nge4 {[%clk 0:02:49]}  Qe7 {[%clk 0:02:33]} 13. Qd6 {[%clk 0:02:28]}  Qxd6 {[%clk 0:02:15]} 14. Nxd6 {[%clk 0:02:29]}  Re7 {[%clk 0:02:16]} 15. Na4 {[%clk 0:02:21]}  Ne8 {[%clk 0:02:04]} 16. Ba3 {[%clk 0:02:09]}  Nxd6 {[%clk 0:01:54]} 17. Bxd6 {[%clk 0:02:10]}  Re8 {[%clk 0:01:55]} 18. Rad1 {[%clk 0:02:05]}  Bf8 {[%clk 0:01:46]} 19. Bxf8 {[%clk 0:01:56]}  Rxf8 {[%clk 0:01:47]} 20. Rd6 {[%clk 0:01:51]}  Re8 {[%clk 0:01:33]} 21. Rfd1 {[%clk 0:01:50]}  Re7 {[%clk 0:01:33]} 22. Bh3 {[%clk 0:01:44]}  Nc5 {[%clk 0:01:19]} 23. Rd8+ {[%clk 0:01:41]}  Kg7 {[%clk 0:01:19]} 24. Nxc5 {[%clk 0:01:41]} 1-0


[Site "https://www.chess.com"]

[Event "Titled Tuesday Blitz January 31 Late 2023"]
[White "Tworuszka, Michal"]
[Black "Gubajdullin, Alexei"]
[WhiteFideId "1117858"]
[BlackFideId "4141202"]
[WhiteElo "2260"]
[BlackElo "2285"]
[Result "1-0"]
[Round "11"]
[TimeControl "180+2"]
[Date "2023.02.01"]
[WhiteClock "0:01:12"]
[BlackClock "0:00:47"]

1. e4 {[%clk 0:03:00]}  c5 {[%clk 0:02:59]} 2. Nf3 {[%clk 0:03:00]}  Nc6 {[%clk 0:02:59]} 3. Bb5 {[%clk 0:03:00]}  g6 {[%clk 0:02:58]} 4. Bxc6 {[%clk 0:02:59]}  bxc6 {[%clk 0:02:58]} 5. O-O {[%clk 0:02:58]}  Bg7 {[%clk 0:02:58]} 6. c3 {[%clk 0:02:57]}  Nh6 {[%clk 0:02:57]} 7. d4 {[%clk 0:02:56]}  cxd4 {[%clk 0:02:57]} 8. cxd4 {[%clk 0:02:57]}  f6 {[%clk 0:02:58]} 9. b3 {[%clk 0:02:56]}  Nf7 {[%clk 0:02:57]} 10. Bb2 {[%clk 0:02:56]}  d6 {[%clk 0:02:57]} 11. Nbd2 {[%clk 0:02:55]}  O-O {[%clk 0:02:57]} 12. Qc2 {[%clk 0:02:55]}  Bd7 {[%clk 0:02:56]} 13. Rfe1 {[%clk 0:02:50]}  Qb8 {[%clk 0:02:56]} 14. Rac1 {[%clk 0:02:49]}  Rc8 {[%clk 0:02:55]} 15. Nc4 {[%clk 0:02:47]}  Qb5 {[%clk 0:02:47]} 16. e5 {[%clk 0:02:36]}  fxe5 {[%clk 0:02:40]} 17. dxe5 {[%clk 0:02:36]}  Bf5 {[%clk 0:02:34]} 18. Qe2 {[%clk 0:02:27]}  d5 {[%clk 0:02:11]} 19. Nd4 {[%clk 0:02:27]}  Qa6 {[%clk 0:02:09]} 20. Nxf5 {[%clk 0:02:27]}  gxf5 {[%clk 0:02:09]} 21. e6 {[%clk 0:02:24]}  Nh6 {[%clk 0:02:01]} 22. Bxg7 {[%clk 0:02:20]}  Kxg7 {[%clk 0:02:00]} 23. Qe5+ {[%clk 0:02:12]}  Kg6 {[%clk 0:01:59]} 24. Re3 {[%clk 0:02:05]}  Ng4 {[%clk 0:01:57]} 25. Rg3 {[%clk 0:02:05]}  dxc4 {[%clk 0:01:57]} 26. Rxc4 {[%clk 0:02:01]}  h5 {[%clk 0:01:49]} 27. h3 {[%clk 0:01:39]}  Qb5 {[%clk 0:01:33]} 28. Rc5 {[%clk 0:01:38]}  Qd3 {[%clk 0:01:30]} 29. hxg4 {[%clk 0:01:37]}  Qb1+ {[%clk 0:01:29]} 30. Kh2 {[%clk 0:01:36]}  hxg4 {[%clk 0:01:24]} 31. Rxg4+ {[%clk 0:01:31]}  fxg4 {[%clk 0:01:19]} 32. Qg5+ {[%clk 0:01:22]}  Kh7 {[%clk 0:01:19]} 33. Qh5+ {[%clk 0:01:17]}  Kg7 {[%clk 0:00:52]} 34. Qf7+ {[%clk 0:01:12]}  Kh8 {[%clk 0:00:47]} 35. Rh5+ {[%clk 0:01:12]} 1-0


[Site "https://www.chess.com"]

[Event "Titled Tuesday Blitz January 31 Late 2023"]
[White "Makhnev, Denis"]
[Black "Aldokhin, Ivan"]
[WhiteFideId "13707647"]
[BlackFideId "24115720"]
[WhiteElo "2483"]
[BlackElo "2413"]
[Result "1-0"]
[Round "11"]
[TimeControl "180+2"]
[Date "2023.02.01"]
[WhiteClock "0:01:16"]
[BlackClock "0:00:01"]

1. d4 {[%clk 0:03:00]}  Nf6 {[%clk 0:02:59]} 2. Nc3 {[%clk 0:03:01]}  d5 {[%clk 0:02:52]} 3. Bf4 {[%clk 0:03:01]}  e6 {[%clk 0:02:42]} 4. e3 {[%clk 0:03:01]}  Bd6 {[%clk 0:02:42]} 5. Nf3 {[%clk 0:03:00]}  O-O {[%clk 0:02:41]} 6. Bd3 {[%clk 0:03:00]}  b6 {[%clk 0:02:41]} 7. O-O {[%clk 0:03:00]}  Bb7 {[%clk 0:02:41]} 8. Ne5 {[%clk 0:02:59]}  c5 {[%clk 0:02:37]} 9. Bg5 {[%clk 0:02:59]}  Nc6 {[%clk 0:02:25]} 10. f4 {[%clk 0:02:59]}  cxd4 {[%clk 0:02:20]} 11. Nxc6 {[%clk 0:03:00]}  Bxc6 {[%clk 0:02:19]} 12. exd4 {[%clk 0:03:01]}  Be7 {[%clk 0:02:16]} 13. Bxf6 {[%clk 0:02:59]}  Bxf6 {[%clk 0:02:13]} 14. Ne2 {[%clk 0:03:00]}  b5 {[%clk 0:02:12]} 15. c3 {[%clk 0:02:56]}  b4 {[%clk 0:02:10]} 16. g4 {[%clk 0:02:49]}  g6 {[%clk 0:02:03]} 17. g5 {[%clk 0:02:44]}  Bh8 {[%clk 0:01:51]} 18. h4 {[%clk 0:02:45]}  bxc3 {[%clk 0:01:37]} 19. bxc3 {[%clk 0:02:46]}  Qa5 {[%clk 0:01:35]} 20. Qd2 {[%clk 0:02:46]}  Rab8 {[%clk 0:01:26]} 21. Rfb1 {[%clk 0:02:46]}  Bb5 {[%clk 0:01:22]} 22. Kf2 {[%clk 0:02:29]}  Rfc8 {[%clk 0:01:07]} 23. Ke3 {[%clk 0:02:27]}  Bxd3 {[%clk 0:00:59]} 24. Qxd3 {[%clk 0:02:27]}  Rxb1 {[%clk 0:00:57]} 25. Rxb1 {[%clk 0:02:28]}  Qxa2 {[%clk 0:00:54]} 26. Rb7 {[%clk 0:02:29]}  Qa1 {[%clk 0:00:36]} 27. h5 {[%clk 0:02:29]}  gxh5 {[%clk 0:00:33]} 28. f5 {[%clk 0:02:21]}  exf5 {[%clk 0:00:17]} 29. Qxf5 {[%clk 0:02:20]}  Re8+ {[%clk 0:00:17]} 30. Kf2 {[%clk 0:02:19]}  Rf8 {[%clk 0:00:16]} 31. Qxd5 {[%clk 0:02:17]}  a5 {[%clk 0:00:10]} 32. Ra7 {[%clk 0:01:38]}  a4 {[%clk 0:00:10]} 33. Qb5 {[%clk 0:01:39]}  a3 {[%clk 0:00:05]} 34. Qc5 {[%clk 0:01:39]}  a2 {[%clk 0:00:04]} 35. Qd5 {[%clk 0:01:40]}  Qb1 {[%clk 0:00:03]} 36. Rxa2 {[%clk 0:01:40]}  Qg6 {[%clk 0:00:04]} 37. Ra5 {[%clk 0:01:37]}  h4 {[%clk 0:00:03]} 38. Qf5 {[%clk 0:01:35]}  Qh5 {[%clk 0:00:02]} 39. Qf3 {[%clk 0:01:31]}  Qg6 {[%clk 0:00:02]} 40. Rf5 {[%clk 0:01:32]}  Re8 {[%clk 0:00:01]} 41. Qd5 {[%clk 0:01:27]}  Qe6 {[%clk 0:00:02]} 42. Qxe6 {[%clk 0:01:25]}  fxe6 {[%clk 0:00:02]} 43. Rf4 {[%clk 0:01:25]}  e5 {[%clk 0:00:03]} 44. Rxh4 {[%clk 0:01:24]}  exd4 {[%clk 0:00:03]} 45. cxd4 {[%clk 0:01:25]}  Kg7 {[%clk 0:00:03]} 46. Nf4 {[%clk 0:01:23]}  Kg8 {[%clk 0:00:02]} 47. d5 {[%clk 0:01:22]}  Bd4+ {[%clk 0:00:02]} 48. Kf3 {[%clk 0:01:23]}  Re3+ {[%clk 0:00:02]} 49. Kg4 {[%clk 0:01:23]}  Re4 {[%clk 0:00:03]} 50. Kh5 {[%clk 0:01:19]}  Re5 {[%clk 0:00:02]} 51. Ne6 {[%clk 0:01:19]}  Bc3 {[%clk 0:00:01]} 52. Rf4 {[%clk 0:01:19]}  Bb4 {[%clk 0:00:01]} 53. Rxb4 {[%clk 0:01:19]}  Rxd5 {[%clk 0:00:01]} 54. Rb7 {[%clk 0:01:18]}  Rd6 {[%clk 0:00:01]} 55. Rg7+ {[%clk 0:01:18]}  Kh8 {[%clk 0:00:02]} 56. Re7 {[%clk 0:01:19]}  Kg8 {[%clk 0:00:01]} 57. Nf4 {[%clk 0:01:19]}  Rd8 {[%clk 0:00:01]} 58. Re5 {[%clk 0:01:17]}  Kg7 {[%clk 0:00:01]} 59. Nd5 {[%clk 0:01:18]}  Kf7 {[%clk 0:00:02]} 60. Nf6 {[%clk 0:01:14]}  Kg7 {[%clk 0:00:02]} 61. Ra5 {[%clk 0:01:13]}  Kf7 {[%clk 0:00:02]} 62. Ra7+ {[%clk 0:01:14]}  Ke6 {[%clk 0:00:02]} 63. Rxh7 {[%clk 0:01:14]}  Rd1 {[%clk 0:00:02]} 64. Kg6 {[%clk 0:01:14]}  Rg1 {[%clk 0:00:01]} 65. Rh8 {[%clk 0:01:15]}  Kd6 {[%clk 0:00:01]} 66. Re8 {[%clk 0:01:16]} 1-0


[Site "https://www.chess.com"]